[Event "NOR-chT Eliteserien 2021-22"]
[Site "Norway"]
[Date "2022.03.05"]
[Round "8.16"]
[White "Royset, Pal"]
[Black "Gjestemoen-VonHirsch, Andre"]
[Result "1/2-1/2"]
[ECO "A48"]
[WhiteElo "2146"]
[BlackElo "2243"]
[Annotator "NA"]
[PlyCount "57"]
[EventDate "2021.10.29"]
[EventType "team-tourn"]
[EventCountry "NOR"]
[SourceTitle "playchess.com"]
[Source "ChessBase"]
[SourceQuality "1"]
[TimeControl "40/5400+30:1800+30"]

1. d4 {[%emt 0:00:12]} Nf6 {[%emt 0:00:11]} 2. Bf4 {[%emt 0:00:27]} g6 {[%emt 0:03:27]} 3. Nf3 {[%emt 0:02:12]} Bg7 {[%emt 0:00:05]} 4. h3 {[%emt 0:03:03]} O-O {[%emt 0:05:01]} 5. e3 {[%emt 0:03:09]} c5 {[%emt 0:08:14]} 6. c3 {[%emt 0:00:07]} Qb6 {[%emt 0:03:15]} 7. Qb3 {[%emt 0:01:15]} Nc6 {[%emt 0:02:29]} 8. Nbd2 {[%emt 0:02:33]} d5 {[%emt 0:00:07]} 9. Be2 {[%emt 0:05:44]} c4 {[%emt 0:17:49]} 10. Qc2 {[%emt 0:00:41]} Bf5 {[%emt 0:00:07]} 11. Qc1 {[%emt 0:00:08]} Qd8 {[%emt 0:00:43]} 12. b3 {[%emt 0:04:01]} b5 {[%emt 0:00:05]} 13. O-O {[%emt 0:04:14]} Ne4 {[%emt 0:17:37]} 14. Nxe4 {[%emt 0:05:57]} Bxe4 {[%emt 0:05:31]} 15. bxc4 {[%emt 0:06:27]} bxc4 {[%emt 0:00:37]} 16. Ng5 {[%emt 0:02:14]} e5 $14 {[%emt 0:03:18]} (16... Bd3 $11 17. Bxd3 cxd3) 17. Nxe4 {[%emt 0:06:54]} (17. dxe5 $14 Nxe5 18. Nxe4 dxe4 19. Bxe5 Bxe5 20. Rb1) 17... exf4 {[%emt 0:00:33]} 18. Nc5 {[%emt 0:00:27]} fxe3 {[%emt 0:00:12]} 19. Qxe3 {[%emt 0:00:25]} Re8 {[%emt 0:01:49]} 20. Qd2 {[%emt 0:00:07]} Qa5 {[%emt 0:03:37]} 21. Rad1 {[%emt 0:01:02]} Rxe2 {[%emt 0:03:03]} 22. Qxe2 {[%emt 0:00:08]} Qxc3 {[%emt 0:00:07]} 23. Qg4 {[%emt 0:05:02]} Rd8 {[%emt 0:07:18]} 24. Nb7 {[%emt 0:02:03]} h5 {[%emt 0:03:18]} 25. Qg5 {[%emt 0:03:17]} Rd7 {[%emt 0:02:45]} 26. Nc5 {[%emt 0:00:48]} Rd8 {[%emt 0:02:16]} 27. Nb7 {[%emt 0:06:43]} Rd7 {[%emt 0:00:03]} 28. Nc5 {[%emt 0:01:11]} Rd8 {[%emt 0:00:42]} 29. Nb7 {[%emt 0:04:55]} 1/2-1/2

[Event "NOR-chT Eliteserien 2021-22"]
[Site "Norway"]
[Date "2022.03.05"]
[Round "8.18"]
[White "Machlik, Monika"]
[Black "Fossan, Aleksander"]
[Result "1/2-1/2"]
[ECO "D85"]
[WhiteElo "2134"]
[BlackElo "2128"]
[Annotator "NA"]
[PlyCount "113"]
[EventDate "2021.10.29"]
[EventType "team-tourn"]
[EventCountry "NOR"]
[SourceTitle "playchess.com"]
[Source "ChessBase"]
[SourceQuality "1"]
[TimeControl "40/5400+30:1800+30"]

1. d4 {[%emt 0:00:01]} Nf6 {[%emt 0:00:09]} 2. c4 {[%emt 0:00:00]} g6 {[%emt 0:00:00]} 3. Nc3 {[%emt 0:00:00]} d5 {[%emt 0:00:00]} 4. cxd5 {[%emt 0:00:01]} Nxd5 {[%emt 0:00:00]} 5. e4 {[%emt 0:00:03]} Nxc3 {[%emt 0:00:07]} 6. bxc3 {[%emt 0:00:06]} Bg7 {[%emt 0:00:13]} 7. Nf3 {[%emt 0:00:06]} c5 {[%emt 0:03:15]} 8. Bb5+ {[%emt 0:00:26]} Bd7 {[%emt 0:03:00]} 9. Rb1 {[%emt 0:00:42]} O-O {[%emt 0:02:45]} 10. O-O {[%emt 0:04:33]} a6 {[%emt 0:29:52]} 11. Bxd7 {[%emt 0:24:51]} Qxd7 {[%emt 0:00:07]} 12. Rb6 {[%emt 0:01:55]} Nc6 {[%emt 0:11:07]} 13. Be3 {[%emt 0:17:22]} cxd4 {[%emt 0:14:26]} 14. cxd4 {[%emt 0:00:13]} Rfd8 {[%emt 0:01:27]} 15. Qb3 {[%emt 0:16:48]} Bxd4 {[%emt 0:15:55]} 16. Rxc6 {[%emt 0:11:55]} Qxc6 {[%emt 0:01:57]} 17. Bxd4 {[%emt 0:00:38]} Qxe4 {[%emt 0:00:26]} 18. Re1 {[%emt 0:01:33]} Qf4 {[%emt 0:03:54]} 19. Be5 {[%emt 0:03:04]} Qf5 {[%emt 0:00:49]} 20. Qxb7 {[%emt 0:00:35]} Qd7 {[%emt 0:00:43]} 21. Qe4 {[%emt 0:01:18]} Rac8 {[%emt 0:01:32]} 22. Qh4 {[%emt 0:01:34]} f6 {[%emt 0:01:10]} 23. Ba1 {[%emt 0:01:33]} Qd5 {[%emt 0:02:43]} 24. h3 {[%emt 0:07:55]} Rc4 {[%emt 0:00:21]} 25. Qh6 {[%emt 0:00:20]} Re4 {[%emt 0:00:17]} 26. Rc1 {[%emt 0:03:01]} Re2 {[%emt 0:01:33]} 27. Bd4 {[%emt 0:00:31]} Qf5 {[%emt 0:01:53]} 28. Bb6 {[%emt 0:00:47]} Rb8 {[%emt 0:01:01]} 29. Be3 {[%emt 0:00:28]} Rxa2 {[%emt 0:01:14]} 30. Qh4 {[%emt 0:00:47]} Qd5 {[%emt 0:00:29]} 31. Qf4 {[%emt 0:00:47]} Rab2 {[%emt 0:00:28]} 32. Ba7 {[%emt 0:01:20]} Rd8 {[%emt 0:01:17]} 33. Qa4 {[%emt 0:00:35]} Qb5 {[%emt 0:00:30]} 34. Qe4 {[%emt 0:00:58]} Re2 {[%emt 0:00:23]} 35. Be3 {[%emt 0:00:25]} e5 {[%emt 0:01:26]} 36. Qh4 {[%emt 0:00:47]} Rf8 {[%emt 0:01:16]} 37. Rc7 {[%emt 0:00:18]} h5 {[%emt 0:00:34]} 38. Qg3 {[%emt 0:00:28]} Qb1+ {[%emt 0:00:18]} 39. Rc1 {[%emt 0:00:30]} Qd3 {[%emt 0:00:24]} 40. Nh4 {[%emt 0:00:38]} g5 {[%emt 0:00:48]} 41. Kh2 {[%emt 0:13:08]} Rc2 {[%emt 0:11:31]} 42. Rxc2 {[%emt 0:01:23]} Qxc2 {[%emt 0:00:14]} 43. Bxg5 {[%emt 0:05:08]} fxg5 {[%emt 0:00:24]} 44. Qxg5+ {[%emt 0:00:04]} Kf7 {[%emt 0:15:01]} 45. Nf5 {[%emt 0:00:39]} Qc5 {[%emt 0:00:17]} 46. Qxh5+ {[%emt 0:02:05]} Kf6 {[%emt 0:01:41]} 47. Ng3 {[%emt 0:03:26]} Ke7 {[%emt 0:01:02]} 48. Qg5+ {[%emt 0:01:04]} Kd7 {[%emt 0:00:35]} 49. Ne4 {[%emt 0:00:39]} Qe7 {[%emt 0:00:23]} 50. Qd2+ {[%emt 0:06:39]} Kc6 {[%emt 0:01:32]} 51. Qc2+ {[%emt 0:00:22]} Kb6 {[%emt 0:00:18]} 52. f3 {[%emt 0:01:24]} a5 {[%emt 0:00:18]} 53. Qf2+ {[%emt 0:00:22]} Kc6 {[%emt 0:00:43]} 54. Qc2+ {[%emt 0:00:11]} Kb6 {[%emt 0:00:05]} 55. Qf2+ {[%emt 0:00:07]} Kc6 {[%emt 0:00:02]} 56. Qc2+ {[%emt 0:00:10]} Kb6 {[%emt 0:00:01]} 57. Qf2+ {[%emt 0:01:30]} 1/2-1/2

[Event "NOR-chT Eliteserien 2021-22"]
[Site "Norway"]
[Date "2022.03.05"]
[Round "8.20"]
[White "Urkedal, Frode Olav Olsen"]
[Black "Bern, Ivar"]
[Result "1-0"]
[ECO "A80"]
[WhiteElo "2549"]
[BlackElo "2312"]
[Annotator "ChessBase"]
[PlyCount "57"]
[EventDate "2021.10.29"]
[EventType "team-tourn"]
[EventCountry "NOR"]
[SourceTitle "playchess.com"]
[Source "ChessBase"]
[SourceQuality "1"]
[TimeControl "40/5400+30:1800+30"]

1. d4 {[%emt 0:00:04]} f5 {[%emt 0:00:08]} 2. Bg5 {[%emt 0:00:10]} g6 {[%emt 0:00:10]} 3. Nc3 {[%emt 0:00:04]} Bg7 {[%emt 0:00:10]} 4. e3 {[%emt 0:00:03]} Nh6 {[%emt 0:00:18]} 5. h4 {[%emt 0:00:12]} Nf7 {[%emt 0:00:22]} 6. Qf3 {[%emt 0:01:57]} c5 {[%emt 0:19:07]} 7. O-O-O {[%emt 0:28:26]} Nc6 {[%emt 0:04:15]} 8. Bc4 {[%emt 0:08:52]} Nxg5 {[%emt 0:07:29]} 9. hxg5 {[%emt 0:00:04]} cxd4 {[%emt 0:00:39]} 10. exd4 {[%emt 0:00:06]} e6 {[%emt 0:22:33]} 11. Qe3 {[%emt 0:02:53]} O-O {[%emt 0:09:56]} 12. f4 {[%emt 0:04:57]} d5 {[%emt 0:04:00]} 13. Bb5 {[%emt 0:00:19]} Qc7 {[%emt 0:07:15]} 14. Nf3 {[%emt 0:04:29]} Na5 {[%emt 0:03:16]} 15. Rh4 {[%emt 0:03:25]} a6 {[%emt 0:01:10]} 16. Bd3 {[%emt 0:00:15]} b5 {[%emt 0:09:26]} 17. Rdh1 {[%emt 0:02:32]} Bh8 {[%emt 0:00:19]} 18. Ne5 {[%emt 0:07:30]} Bxe5 {[%emt 0:00:51]} 19. fxe5 {[%emt 0:00:07]} Rf7 {[%emt 0:02:37]} 20. g4 {[%emt 0:00:23]} Nc4 {[%emt 0:04:09]} 21. Bxc4 {[%emt 0:09:41]} bxc4 {[%emt 0:00:07]} 22. Ne2 {[%emt 0:08:49]} Qe7 {[%emt 0:01:50]} 23. gxf5 {[%emt 0:05:46]} exf5 {[%emt 0:00:18]} 24. Nf4 {[%emt 0:02:49]} Qxg5 {[%emt 0:00:37]} 25. Rh5 {[%emt 0:04:32]} gxh5 {[%emt 0:01:05]} 26. Rg1 {[%emt 0:00:04]} Qg4 {[%emt 0:00:07]} 27. Nxh5 {[%emt 0:00:14]} Kh8 {[%emt 0:00:45]} 28. Rxg4 {[%emt 0:00:45]} fxg4 {[%emt 0:00:03]} 29. e6 {[%emt 0:00:09]} 1-0

[Event "NOR-chT Eliteserien 2021-22"]
[Site "Norway"]
[Date "2022.03.05"]
[Round "8.21"]
[White "Gullaksen, Eirik"]
[Black "Ranaldi, Lucas"]
[Result "1/2-1/2"]
[ECO "B11"]
[WhiteElo "2349"]
[BlackElo "2337"]
[Annotator "NA"]
[PlyCount "62"]
[EventDate "2021.10.29"]
[EventType "team-tourn"]
[EventCountry "NOR"]
[SourceTitle "playchess.com"]
[Source "ChessBase"]
[SourceQuality "1"]
[TimeControl "40/5400+30:1800+30"]

1. e4 {[%emt 0:00:08]} c6 {[%emt 0:00:07]} 2. Nc3 {[%emt 0:00:13]} d5 {[%emt 0:00:07]} 3. Nf3 {[%emt 0:00:15]} Bg4 {[%emt 0:00:27]} 4. h3 {[%emt 0:00:26]} Bxf3 {[%emt 0:00:07]} 5. Qxf3 {[%emt 0:00:19]} Nf6 {[%emt 0:00:09]} 6. Be2 {[%emt 0:00:33]} e6 {[%emt 0:00:47]} 7. O-O {[%emt 0:00:45]} Bc5 {[%emt 0:01:10]} 8. Rd1 {[%emt 0:00:42]} Bd4 {[%emt 0:05:18]} 9. Qf4 {[%emt 0:01:40]} dxe4 {[%emt 0:02:07]} 10. d3 {[%emt 0:05:36]} Bxc3 {[%emt 0:07:14]} 11. dxe4 {[%emt 0:06:48]} Qe7 {[%emt 0:07:05]} 12. bxc3 {[%emt 0:01:46]} e5 {[%emt 0:00:23] [#]} 13. Qg3 $1 {[%emt 0:06:07]} O-O {[%emt 0:05:03]} 14. Bh6 {[%emt 0:01:24]} Ne8 {[%emt 0:00:24]} 15. a4 {[%emt 0:05:51]} Nd7 {[%emt 0:04:06]} 16. a5 {[%emt 0:05:40]} Nc5 {[%emt 0:01:54]} 17. f3 {[%emt 0:00:58]} Kh8 {[%emt 0:05:16]} 18. Be3 {[%emt 0:04:22]} Nc7 {[%emt 0:13:37]} 19. Rab1 {[%emt 0:10:02]} Rfd8 {[%emt 0:03:25]} 20. Rxd8+ {[%emt 0:01:10]} Rxd8 {[%emt 0:00:09]} 21. Qf2 {[%emt 0:01:15]} (21. Bc4 $16) 21... N7e6 {[%emt 0:01:03]} 22. Rb4 $14 {[%emt 0:11:20]} a6 {[%emt 0:01:10]} 23. Kh2 {[%emt 0:01:06]} f6 {[%emt 0:20:39]} 24. Qg1 {[%emt 0:01:32]} h6 {[%emt 0:02:19]} 25. Qf2 {[%emt 0:05:44]} Kh7 {[%emt 0:00:44]} 26. Qg1 {[%emt 0:00:38]} Rb8 {[%emt 0:07:29]} 27. Bc4 {[%emt 0:04:35]} Rd8 {[%emt 0:01:32]} 28. Be2 {[%emt 0:03:14]} Kh8 {[%emt 0:00:44]} 29. Kh1 {[%emt 0:00:54]} Kh7 {[%emt 0:02:40]} 30. Kh2 {[%emt 0:01:04]} Kh8 {[%emt 0:01:46]} 31. Kh1 {[%emt 0:00:36]} Kh7 {[%emt 0:00:19]} 1/2-1/2

[Event "NOR-chT Eliteserien 2021-22"]
[Site "Norway"]
[Date "2022.03.05"]
[Round "8.22"]
[White "Gandrud, Vegar Koi"]
[Black "Demac, Elias"]
[Result "0-1"]
[ECO "A88"]
[WhiteElo "2315"]
[BlackElo "2206"]
[Annotator "NA"]
[PlyCount "66"]
[EventDate "2021.10.29"]
[EventType "team-tourn"]
[EventCountry "NOR"]
[SourceTitle "playchess.com"]
[Source "ChessBase"]
[SourceQuality "1"]
[TimeControl "40/5400+30:1800+30"]

1. d4 {[%emt 0:00:02]} f5 {[%emt 0:00:19]} 2. c4 {[%emt 0:00:11]} Nf6 {[%emt 0:00:06]} 3. g3 {[%emt 0:00:12]} g6 {[%emt 0:00:06]} 4. Bg2 {[%emt 0:00:03]} Bg7 {[%emt 0:00:05]} 5. Nf3 {[%emt 0:00:18]} O-O {[%emt 0:00:07]} 6. O-O {[%emt 0:00:13]} d6 {[%emt 0:00:05]} 7. Nc3 {[%emt 0:00:07]} Qe8 {[%emt 0:00:05]} 8. b3 {[%emt 0:06:05]} Na6 {[%emt 0:00:07]} 9. Ba3 {[%emt 0:05:19]} c6 {[%emt 0:00:08]} 10. Rc1 {[%emt 0:08:12]} b5 {[%emt 0:05:28]} 11. Bb2 {[%emt 0:17:29]} Rb8 {[%emt 0:11:16]} 12. Ba1 {[%emt 0:01:44]} bxc4 {[%emt 0:13:21]} 13. bxc4 {[%emt 0:00:15]} Rb4 {[%emt 0:00:47]} 14. a3 {[%emt 0:04:12]} Rb8 {[%emt 0:05:40]} 15. Re1 {[%emt 0:19:11]} e5 {[%emt 0:08:44] [#]} (15... Bh6 $14) 16. e4 $16 {[%emt 0:08:39]} f4 {[%emt 0:06:30]} 17. Na4 {[%emt 0:05:45]} fxg3 {[%emt 0:04:20]} 18. fxg3 {[%emt 0:04:40]} Bg4 {[%emt 0:04:14]} 19. dxe5 {[%emt 0:06:03]} dxe5 {[%emt 0:09:57]} 20. h3 {[%emt 0:02:30]} Bxf3 {[%emt 0:00:15]} 21. Bxf3 {[%emt 0:00:58]} Qe7 {[%emt 0:02:43]} 22. Qd3 {[%emt 0:05:15]} Nc5 {[%emt 0:01:23]} 23. Nxc5 {[%emt 0:00:01]} Qxc5+ {[%emt 0:00:05]} 24. Kg2 {[%emt 0:01:01]} Rf7 {[%emt 0:06:50]} 25. Qc3 {[%emt 0:00:34]} Nd7 {[%emt 0:04:04]} 26. Rf1 {[%emt 0:00:31]} Nf8 {[%emt 0:02:03]} 27. Bg4 {[%emt 0:01:16]} Rxf1 {[%emt 0:00:45]} 28. Rxf1 {[%emt 0:00:05]} h5 {[%emt 0:00:10]} 29. Bd1 {[%emt 0:01:34]} Ne6 {[%emt 0:00:18]} 30. Bb2 {[%emt 0:00:58]} Qd4 {[%emt 0:03:39]} 31. Qxd4 {[%emt 0:00:56]} exd4 {[%emt 0:00:04]} 32. Rf2 {[%emt 0:01:07]} Nc5 {[%emt 0:00:19]} 33. Re2 {[%emt 0:01:03]} d3 {[%emt 0:00:18]} 0-1

[Event "NOR-chT Eliteserien 2021-22"]
[Site "Norway"]
[Date "2022.03.05"]
[Round "8.23"]
[White "Mork, Kjell Arne"]
[Black "Madland, Kristoffer"]
[Result "1-0"]
[ECO "B51"]
[WhiteElo "2246"]
[BlackElo "2168"]
[Annotator "NA"]
[PlyCount "59"]
[EventDate "2021.10.29"]
[EventType "team-tourn"]
[EventCountry "NOR"]
[SourceTitle "playchess.com"]
[Source "ChessBase"]
[SourceQuality "1"]
[TimeControl "40/5400+30:1800+30"]

1. e4 {[%emt 0:00:08]} c5 {[%emt 0:00:10]} 2. Nf3 {[%emt 0:00:04]} d6 {[%emt 0:00:09]} 3. Bb5+ {[%emt 0:00:07]} Nd7 {[%emt 0:01:56]} 4. O-O {[%emt 0:01:14]} Ngf6 {[%emt 0:02:38]} 5. Re1 {[%emt 0:01:14]} g6 {[%emt 0:03:05]} 6. c3 {[%emt 0:02:31]} Bg7 {[%emt 0:02:02]} 7. d4 {[%emt 0:00:30]} a6 {[%emt 0:03:36]} 8. Ba4 {[%emt 0:02:04]} O-O {[%emt 0:04:26]} 9. e5 {[%emt 0:13:26]} dxe5 {[%emt 0:10:10]} (9... Ne8 $1 $14 {should be considered.}) 10. dxe5 {[%emt 0:00:09]} Ng4 {[%emt 0:01:01]} 11. Bf4 {[%emt 0:10:32]} b5 {[%emt 0:02:11]} 12. Bc2 {[%emt 0:00:44]} Bb7 {[%emt 0:03:39]} 13. Nbd2 {[%emt 0:01:08]} Qc7 {[%emt 0:04:18]} 14. Qe2 {[%emt 0:05:29]} Rad8 $14 {[%emt 0:07:18]} 15. Rad1 {[%emt 0:03:28]} Nb6 {[%emt 0:11:05]} 16. h3 {[%emt 0:13:49]} Nh6 {[%emt 0:04:05]} 17. Ne4 {[%emt 0:00:55]} Nd5 {[%emt 0:07:58]} 18. Bc1 {[%emt 0:03:29]} Kh8 {[%emt 0:02:36]} 19. Neg5 {[%emt 0:01:49]} Qb6 {[%emt 0:02:48]} 20. Nh4 {[%emt 0:05:01]} f6 {[%emt 0:07:27]} 21. Nxh7 {[%emt 0:03:47]} Kxh7 {[%emt 0:01:11]} 22. Bxg6+ {[%emt 0:01:06]} Kg8 {[%emt 0:01:03]} 23. Bxh6 {[%emt 0:19:20]} fxe5 {[%emt 0:02:11]} 24. Bxg7 {[%emt 0:01:22]} Kxg7 {[%emt 0:00:26]} 25. Qxe5+ {[%emt 0:01:13]} Qf6 {[%emt 0:00:59]} 26. Bc2 {[%emt 0:01:43]} Qxe5 {[%emt 0:04:42]} 27. Rxe5 {[%emt 0:00:06]} Kf7 {[%emt 0:03:07]} 28. Rde1 {[%emt 0:02:51]} Rd7 {[%emt 0:00:32]} 29. Bf5 {[%emt 0:00:56]} Rc7 {[%emt 0:00:51]} 30. Be6+ {[%emt 0:00:26]} 1-0

[Event "NOR-chT Eliteserien 2021-22"]
[Site "Norway"]
[Date "2022.03.05"]
[Round "8.24"]
[White "Nilssen, Ellen Fredericia"]
[Black "Mansoor, Afras"]
[Result "1-0"]
[ECO "E51"]
[WhiteElo "2110"]
[BlackElo "2003"]
[Annotator "NA"]
[PlyCount "99"]
[EventDate "2021.10.29"]
[EventType "team-tourn"]
[EventCountry "NOR"]
[SourceTitle "playchess.com"]
[Source "ChessBase"]
[SourceQuality "1"]
[TimeControl "40/5400+30:1800+30"]

1. d4 {[%emt 0:00:06]} Nf6 {[%emt 0:00:04]} 2. Nf3 {[%emt 0:00:07]} d5 {[%emt 0:00:04]} 3. c4 {[%emt 0:00:59]} e6 {[%emt 0:00:04]} 4. Nc3 {[%emt 0:00:05]} Bb4 {[%emt 0:00:04]} 5. e3 {[%emt 0:02:52]} O-O {[%emt 0:01:19]} 6. Bd2 {[%emt 0:00:17]} c5 {[%emt 0:06:50]} 7. a3 {[%emt 0:00:43]} Bxc3 {[%emt 0:04:15]} 8. Bxc3 {[%emt 0:00:11]} Ne4 {[%emt 0:01:40]} 9. Rc1 {[%emt 0:00:14]} Nxc3 {[%emt 0:07:52]} 10. Rxc3 {[%emt 0:00:14]} cxd4 {[%emt 0:04:44]} 11. Nxd4 {[%emt 0:00:12]} b6 {[%emt 0:06:02]} 12. cxd5 {[%emt 0:15:46]} Qxd5 {[%emt 0:00:58]} 13. Be2 {[%emt 0:00:08]} Bb7 {[%emt 0:02:30]} 14. Bf3 {[%emt 0:00:57]} Qd7 {[%emt 0:00:07]} 15. O-O {[%emt 0:00:38]} Na6 {[%emt 0:05:05]} 16. Bc6 {[%emt 0:13:35]} Qe7 {[%emt 0:09:57]} 17. Qf3 {[%emt 0:02:12]} Rab8 {[%emt 0:01:13]} 18. b4 {[%emt 0:06:55]} g6 {[%emt 0:07:20]} 19. Rfc1 {[%emt 0:11:41]} e5 {[%emt 0:03:50]} 20. Qe4 {[%emt 0:04:26]} Rfe8 {[%emt 0:07:43]} 21. Bxb7 {[%emt 0:07:24]} Qxb7 {[%emt 0:06:09]} 22. Nc6 {[%emt 0:00:46]} Re6 {[%emt 0:02:11]} 23. Qd3 {[%emt 0:06:33]} Nc5 {[%emt 0:09:00]} 24. Rxc5 {[%emt 0:00:14]} bxc5 {[%emt 0:00:03]} 25. Nxb8 {[%emt 0:00:16]} Qxb8 {[%emt 0:01:00]} 26. Rxc5 {[%emt 0:01:38]} Rd6 {[%emt 0:07:14]} 27. Qc2 {[%emt 0:00:11]} Qd8 {[%emt 0:01:21]} 28. h3 {[%emt 0:03:23]} Qf6 {[%emt 0:01:34]} 29. Qe4 {[%emt 0:04:16]} Rd2 {[%emt 0:02:59]} 30. Qf3 {[%emt 0:05:23]} Qd6 {[%emt 0:01:42]} 31. g3 {[%emt 0:02:19]} Kg7 {[%emt 0:00:30]} 32. Kg2 {[%emt 0:01:31]} Ra2 {[%emt 0:00:23]} 33. Ra5 {[%emt 0:01:46]} a6 {[%emt 0:00:08]} 34. h4 {[%emt 0:01:43]} h5 {[%emt 0:00:11]} 35. Kh2 {[%emt 0:02:34]} Qe6 {[%emt 0:01:14]} 36. Kg2 {[%emt 0:01:15]} Qd6 {[%emt 0:00:03]} 37. Rd5 {[%emt 0:00:42]} e4 {[%emt 0:01:04]} 38. Qxf7+ {[%emt 0:01:17]} Kxf7 {[%emt 0:00:04]} 39. Rxd6 {[%emt 0:00:06]} Rxa3 {[%emt 0:00:03]} 40. Rd4 {[%emt 0:00:11]} Ra4 {[%emt 0:01:23]} 41. Rxe4 {[%emt 0:30:16]} a5 {[%emt 0:05:10]} 42. Rf4+ {[%emt 0:00:00]} Ke6 {[%emt 0:00:04]} 43. bxa5 {[%emt 0:00:00]} Rxa5 {[%emt 0:00:03]} 44. Kf3 {[%emt 0:00:00]} Ra1 {[%emt 0:01:48]} 45. Rb4 {[%emt 0:00:00]} Ra3 {[%emt 0:00:55]} 46. Kf4 {[%emt 0:00:00]} Ra5 {[%emt 0:00:26]} 47. Rb6+ {[%emt 0:00:00]} Kf7 {[%emt 0:00:06]} 48. e4 {[%emt 0:00:00]} Kg7 {[%emt 0:00:42]} 49. f3 {[%emt 0:00:00]} Ra3 {[%emt 0:00:29]} 50. e5 {[%emt 0:00:00]} 1-0

[Event "NOR-chT Eliteserien 2021-22"]
[Site "Norway"]
[Date "2022.03.05"]
[Round "8.25"]
[White "Miezis, Normunds"]
[Black "Blomqvist, Erik"]
[Result "0-1"]
[ECO "C01"]
[WhiteElo "2445"]
[BlackElo "2536"]
[Annotator "ChessBase"]
[PlyCount "92"]
[EventDate "2021.10.29"]
[EventType "team-tourn"]
[EventCountry "NOR"]
[SourceTitle "playchess.com"]
[Source "ChessBase"]
[SourceQuality "1"]
[TimeControl "40/5400+30:1800+30"]

1. c4 {[%emt 0:00:05]} e6 {[%emt 0:00:10]} 2. e4 {[%emt 0:00:39]} d5 {[%emt 0:00:12]} 3. exd5 {[%emt 0:00:19]} exd5 {[%emt 0:00:10]} 4. d4 {[%emt 0:00:15]} Nf6 {[%emt 0:00:20]} 5. Nc3 {[%emt 0:01:20]} Bb4 {[%emt 0:00:37]} 6. Bd3 {[%emt 0:02:56]} O-O {[%emt 0:00:54]} 7. Nge2 {[%emt 0:00:41]} dxc4 {[%emt 0:00:41]} 8. Bxc4 {[%emt 0:00:14]} Nbd7 {[%emt 0:00:35]} 9. O-O {[%emt 0:16:15]} Nb6 {[%emt 0:00:23]} 10. Bb3 {[%emt 0:03:19]} c6 {[%emt 0:00:28]} 11. Bg5 {[%emt 0:04:33]} Re8 {[%emt 0:02:45]} 12. Qd3 {[%emt 0:10:23]} Be6 {[%emt 0:01:08]} 13. Bxe6 {[%emt 0:04:41]} Rxe6 {[%emt 0:00:34]} 14. Rad1 {[%emt 0:02:05]} h6 {[%emt 0:05:52]} 15. Bh4 {[%emt 0:02:12]} Qd7 {[%emt 0:10:05]} 16. Nf4 {[%emt 0:09:27]} Rd6 {[%emt 0:00:32]} 17. Bg3 {[%emt 0:00:20]} Rd8 {[%emt 0:13:10]} 18. a3 {[%emt 0:10:00]} Bxc3 {[%emt 0:00:23]} 19. bxc3 {[%emt 0:00:11]} c5 {[%emt 0:00:41]} 20. Ne2 {[%emt 0:05:31]} c4 {[%emt 0:01:47]} 21. Qf3 {[%emt 0:05:14]} Rd5 {[%emt 0:03:16]} 22. Bf4 {[%emt 0:03:29]} Nh7 {[%emt 0:18:14]} 23. Ng3 {[%emt 0:04:08]} Ng5 {[%emt 0:02:05]} 24. Bxg5 {[%emt 0:00:53]} hxg5 {[%emt 0:00:05]} 25. Rde1 {[%emt 0:00:43]} Ra5 {[%emt 0:05:24]} 26. h3 {[%emt 0:05:39]} Nd5 {[%emt 0:01:47]} 27. Ne4 {[%emt 0:03:27]} Rxa3 {[%emt 0:04:15]} 28. Ra1 {[%emt 0:00:15]} Rxa1 {[%emt 0:16:23]} 29. Rxa1 {[%emt 0:00:06]} b6 {[%emt 0:00:37]} 30. Nxg5 {[%emt 0:00:32]} Re8 {[%emt 0:00:14]} 31. Ne4 {[%emt 0:02:05]} a5 {[%emt 0:01:04]} 32. h4 {[%emt 0:00:49]} Qc6 {[%emt 0:04:42]} 33. Ng5 {[%emt 0:02:04]} f6 {[%emt 0:00:58]} 34. Ne4 {[%emt 0:00:34]} Nc7 {[%emt 0:05:05]} 35. Re1 {[%emt 0:00:43]} Qb5 {[%emt 0:01:13]} 36. Kh2 {[%emt 0:00:41]} Re6 {[%emt 0:00:42]} 37. h5 {[%emt 0:01:08]} f5 {[%emt 0:00:39]} 38. Qg3 {[%emt 0:00:58]} Qd7 {[%emt 0:00:22]} 39. f3 {[%emt 0:00:16]} fxe4 {[%emt 0:00:10]} 40. fxe4 {[%emt 0:00:13]} Qf7 {[%emt 0:01:00]} 41. d5 {[%emt 0:30:08]} Qxh5+ {[%emt 0:01:33]} 42. Kg1 {[%emt 0:00:00]} Qe5 {[%emt 0:02:56]} 43. Qxe5 {[%emt 0:00:00]} Rxe5 {[%emt 0:00:05]} 44. Rb1 {[%emt 0:00:00]} b5 {[%emt 0:01:21]} 45. Kf2 {[%emt 0:00:00]} Kf7 {[%emt 0:01:42]} 46. Ke3 {[%emt 0:00:00]} Ke7 {[%emt 0:02:59]} 0-1